{"text_format":"1","workbook":"xlsx","n_sheets":6,"sheets":["Anagrafica","Tariffa componenti ambientali","Tariffe prelievi analisi aria","Tariffe prelievi analisi acqua","Tariffario ARPAV_altre matrici","Riassunto_Tariffa"],"not_rendered":{"charts":0,"images":1,"macros":1,"external_links":0,"defined_names":13,"comments":0,"pivot_tables":0},"unopened":[],"bounds":{"document_bytes":16777216,"sheet_cells":100000,"rows_first":2000,"rows_last":500,"rows_between":2000,"halvings":0,"cell_chars":16384,"cell_head_chars":4096},"cells_cut":0,"cells_raw":0,"read":"whole","date_system":"1900"}

{"sheet":"Anagrafica","index":0,"n_rows":40,"n_cols":9,"rows_kept":40,"cut":false,"hidden":false,"merged":[[6,0,7,9],[8,0,8,9],[9,0,9,1],[15,3,15,8],[9,2,9,8],[13,2,13,8],[11,2,11,9],[24,0,24,9],[19,0,19,1],[22,0,22,9],[14,0,14,9],[15,0,15,1],[19,3,19,8],[18,0,18,9],[23,2,23,8],[26,0,26,9],[27,0,27,2],[27,4,27,7],[27,8,27,9],[25,0,25,2],[25,4,25,5],[25,7,25,8],[30,0,30,9],[32,3,32,8],[31,0,32,1],[36,4,36,7],[35,0,35,2],[35,8,35,9],[33,0,33,2],[34,4,34,5]]}
[]
[]
[]
[]
[]
[]
["ANAGRAFICA DEL GESTORE"]
[]
[]
["Ragione sociale:"]
[]
["Categoria IPPC"]
[]
["PIVA"]
[]
["Indirizzo impianto:",null,"via"]
[]
[null,null,"n°",null,null,"CAP"]
[]
[null,null,"città"]
[]
[]
[]
["Referente AIA:"]
[]
[null,null,null,"tel:",null,null,"fax:"]
[]
[null,null,null,"e-mail:"]
[]
[]
[]
["Compilatore modulo tariffe:"]
[]
[]
[null,null,null,"tel:"]
[]
[null,null,null,"e-mail:"]
[]
[]
[null,null,null,null,null,null,null,null,"rev 07/12/2020"]

{"sheet":"Tariffa componenti ambientali","index":1,"n_rows":92,"n_cols":9,"rows_kept":92,"cut":false,"hidden":false,"merged":[[81,0,85,3],[26,4,26,5],[36,3,36,8],[49,0,51,3],[53,2,53,3],[46,2,46,6],[7,0,8,8],[13,3,13,8],[15,3,15,8],[24,3,24,6]]}
[]
[{"$f":"Riassunto_Tariffa!$A$2","v":"rev 01/11/2023"}]
["DM 24/04/2008 e DGRV 1519/2009"]
[]
[]
[null,null,"SOLO CONTROLLO ANALITICO"]
[null,null,"Inserire una X se previsto il solo controllo analitico"]
["Concultare le tabelle riprese dalla DGRV 1519 e  inserire il valore corrispondente all'attività in oggetto nello spazio dedicato in colonna A, ombreggiato di verde."]
[]
[]
[]
["Inserire il costo in base al numero di camini e di inquinanti per ciascun camino"]
[]
["Caria",null,"Caria","Numero di camini"]
[null,null,"Numero di sostanze inquinanti",1,"da 2 a 3","da 4 a 8","da 9 a 20","da 21 a 60","oltre 60"]
[null,null,"Nessun inquinante",200]
[null,null,"da 1 a 4 inquinanti",560,875,1400,2100,3150,8400]
[null,null,"d 5 a 10 inquinanti",1050,1750,2800,3500,4900,14000]
[null,null,"da 11 a 17 inquinanti",2100,5250,8400,11550,14000,23100]
[null,null,"più di 17 inquinanti",2450,5600,11200,21000,23800,34300]
[]
[null,null,"Costo in euro"]
[]
["Inserire il costo in base al numero di scarichi e di inquinanti per ciascun scarico."]
["Cacqua",null,"Cacqua","Numero di scarichi"]
[null,null,"Numero di sostanze inquinanti",1,"da 2 a 3","da 4 a 8","oltre 8"]
[null,null,"Nessun inquinante",50,100,null,400]
[null,null,"da 1 a 4 inquinanti",665,1050,1400,3500]
[null,null,"d 5 a 7 inquinanti",1225,1960,2940,5600]
[null,null,"da 8 a 12 inquinanti",1610,2660,4060,7000]
[null,null,"da 13 a 15 inquinanti",2450,5250,10500,20300]
[null,null,"più di 15 inquinanti",3150,7000,14000,21000]
[]
[null,null,"Costo in euro"]
[]
["Inserire il costo in base alla quantità di rifiuto (pericoloso e/o non pericoloso) autorizzato al trattamento al giorno."]
["CRP (rifiuti pericolosi)",null,"C rifiuti","Tonnellate/giorno"]
[null,null,null,0,"fino ad 1","oltre 1 fino a 10","oltre 10 fino a 20","oltre 20 fino a 50","oltre 50"]
[null,null,"Rp: rifiuti pericolosi",0,350,700,1540,2240,3500]
["CRnP (rifiuti NON pericolosi)",null,"Rnp: rifiuti non pericolosi",0,175,350,840,1260,2100]
[]
[null,null,"Costo in euro"]
[null,null,"* esclusi fanghi utilizzati in agricoltura"]
[]
[]
["C rifiuti deposito temporaneo",null,"Se l'azienda effettua esclusivamente operazioni di Deposito Temporaneo si applica una tariffa forfetaria pari a:"]
[0,null,300]
[null,null,"Costo in euro"]
[]
["Inserire il costo nelle caselle ombreggiate di verde, scegliendo dalle tabelle affianco la voce corretta solo nel caso in cui le componenti ambientali sono comprese nell'autorizzazione."]
[]
[]
[]
[null,null,"Ulteriori componenti ambientali "]
["Cca",null,"Cca","Costo in euro"]
[null,null,"Se la voce è presente in autorizzazione e:"]
[null,null,"1- per impianti esistenti (o comunque impianti la cui istruttoria si è conclusa prima dell'entrata in vigore della delibera 1519) a cui è stato prescritto nell'ambito del rilascio dell'AIA un piano di risanamento acustico, il Cca è da considerarsi pari a ",1220]
[null,null,"2- per impianti esistenti (o comunque impianti la cui istruttoria si è conclusa prima dell'entrata in vigore della DGRV 1519) cui è stata prescritta una nuova indagine acustica Cca da considerarsi pari a ",700]
[null,null,"3-per tutti gli altri impianti, eccetto quelli ricadenti nellea ttività 2.6 e 6.7, il Cca è pari a ",500]
[]
["Cri",null,"Cri","Costo in euro"]
[0,null,"Se la voce è presente in autorizzazione",2450]
[]
[]
["Cem",null,"Cem: non applicabile secondo DGRV 1519","Costo in euro"]
[0,null,"Se la voce è presente in autorizzazione","――――――"]
[]
[]
["Cod",null,"Cod","Costo in euro"]
[0,null,"Se la voce è presente in autorizzazione",490]
[]
[]
["Cst",null,"Cst","Costo in euro"]
[0,null,"Se la voce è presente in autorizzazione",980]
[]
[]
["Cra",null,"Cra","Costo in euro"]
[0,null,"Se la voce è presente in autorizzazione",3720]
[]
[]
[]
["In base alla DGRV 1519, per le aziende in possesso di certificazione ambientale UNI EN ISO 14001 o registrate EMAS, è prevista una riduzione pari rispettivamente al 10% e al 25% della tariffa conplessiva Tc. Se l'azienda possiede i requisiti sopra menzionati segni una 'x' nella casella ombreggiata di verde e il costo Tc verrà automaticamente ridotto delle pecentuali sopradette (vd foglio Riassunto_tariffa)."]
[]
[]
[]
[]
[]
[null,null,"Impianti certificati UNI EN ISO 14001"]
["è prevista una riduzione del 10% per"]
[]
[null,null,"Impianti certificati UNI EN ISO EMAS"]
["è prevista una riduzione del 25% per"]

{"sheet":"Tariffe prelievi analisi aria","index":2,"n_rows":119,"n_cols":7,"rows_kept":119,"cut":false,"hidden":false,"merged":[[90,0,91,0],[115,1,117,1],[92,0,93,0],[94,0,95,0],[111,0,114,0],[96,0,97,0],[100,0,102,0],[104,0,106,0],[107,0,109,0],[76,0,77,0],[79,0,80,0],[83,0,84,0],[85,0,86,0],[87,0,89,0],[47,6,61,6],[64,0,65,0],[66,1,75,1],[66,3,75,3],[66,4,75,4],[47,2,61,2],[66,2,75,2],[66,5,75,5],[26,0,28,0],[31,0,33,0],[34,0,35,0],[36,0,37,0],[39,0,42,0],[44,0,46,0],[47,1,61,1],[18,0,19,0],[20,0,22,0],[23,0,25,0],[5,0,6,5],[9,0,11,5]]}
[]
[{"$f":"Riassunto_Tariffa!$A$2","v":"rev 01/11/2023"}]
["DM 24/04/2008 e DGRV 1519/2009"]
[]
[]
["*  se il PMC dell'azienda prevede \"attività/parametri\" non elencati nella prima colonna, è necessario inserirli singolarmente dalla riga 116 in poi, riportandone il  codice prestazione ed il costo indicati nel vigente tariffario ARPAV\nove necessario riportare la formula relativa ai Totali parziali per riga."]
[]
[]
[]
["Per il calcolo dei costi relativi ai controlli, l'azienda deve inserire nelle caselle colorate in verde solo il numero di attività/parametri che sono previsti. il costo viene calcolato automaticamente sia per ciascuna voce, sia il totale per matrice e riportato poi nel foglio riassunto."]
[]
[]
[]
["TARIFFARIO PRELIEVI ED ANALISI ARIA"]
[]
["Attività/ Parametro","Metodi","codice prestazione tariffario ARPAV *","Tariffa (euro)","Numero di attività/parametri programmati ","Totale (euro)"]
["Portata, temperatura, umidità","UNI 10169:2001",null,100,null,{"$f":"D17*E17","v":0}]
["Attività di campionamento PCDD+PCDF (8 ore di prelievo)",null,null,360,null,0]
["Ossigeno (O2)","UNI 9968 (GC-TCD)",null,35,null,0]
[null,"Analizzatori automatici a celle elettrolitiche, I; UV, ecc",null,35,null,0]
["Metano (CH4)","UNI 9968 (GC-TCD)",null,35,null,0]
[null,"UNI EN 12619 o UNI EN 13526 (GC-FID con separazione metano/Non metanici)",null,35,null,0]
[null,"Analizzatori automatici a celle elettrochimiche, I, UV, ecc",null,35,null,0]
["Monossidi di carbonio (CO)","UNI 9969 (NDIR)",null,35,null,0]
[null,"UNI 9968 (GC-TCD)",null,35,null,0]
[null,"Analizzatori automatici a celle elettrolitiche, I; UV, ecc",null,35,null,0]
["Biossido di carbonio (CO2)","deducibile da calcolo indiretto",null,35,null,0]
[null,"UNI 9968 (GC-TCD)",null,35,null,0]
[null,"Analizzatori automatici a celle elettrolitiche, I; UV, ecc",null,35,null,0]
["Idrofluorocarburi (HFC)","UNI EN 13649 (GC)",null,62,null,0]
["Protossido di azoto","Xcampionamento in vetro o sacca inerte (GC-ECD)",null,51,null,0]
["Ammoniaca (NH3)","UNICHIM 269 (UV-VIS Indofenolo)",null,20,null,0]
[null,"UNICHIM 269 (UV-VIS Nessler)",null,20,null,0]
[null,"UNICHIM 632 (campionamento) + potenziometria IRSA 4030",null,25,null,0]
["COV espressi come carbonio","UNI EN 12619 o UNI EN 13526 (GC-FID)",null,44,null,0]
[null,"UNI EN 13649 (GC)",null,53,null,0]
["COV non Metanici espressi come carbonio","UNI EN 12619 o UNI EN 13526 (GC-FID con separazione metano/Non metanici)",null,44,null,0]
[null,"UNI EN 13649 (GC)",null,60,null,0]
["COV","UNI EN 13649 (GC)",null,61,null,0]
["Ossidi di azoto (NOx)","UNI 9970 (UV-VIS)",null,20,null,0]
[null,"ISTIAN 98/2 (CI)",null,40,null,0]
[null,"UNI10878 (NDIR, NDUV, chemilumin,)",null,35,null,0]
[null,"Analizzatori automatici a celle elettrolitiche",null,35,null,0]
["Polifluorocarburi (PFC)","UNI EN 13649 (GC)",null,62,null,0]
["Esafluoro di zolfo (SF6)","NIOSH 6602",null,62,null,0]
[null,"ISTISAN 98/2 (CI)",null,40,null,0]
[null,"UNI 10393 (IR, fluoescenza, celle elettrochimiche)",null,35,null,0]
["Arsenico (As) e composti","ISTISAN 88/19 + UNICHIM723 UNI EN 14385",null,null,null,{"$f":"D48*E48","v":0},"26 singolo metallo + 10 per ogni metallo aggiuntivo"]
["Cadmio (Cd) e composti",null,null,null,null,{"$f":"D49*E49","v":0}]
["Cromo (Cr) e composti",null,null,null,null,0]
["Rame (Cu) e composti",null,null,null,null,0]
["Nichel (Ni) e composti",null,null,null,null,0]
["Piombo (Pb) e composti",null,null,null,null,0]
["Zinco (Zn) e composti",null,null,null,null,0]
["Tallio (Tl) e composti",null,null,null,null,0]
["Stagno e composti (Sn)",null,null,null,null,0]
["Antimonio (Sb) e composti",null,null,null,null,0]
["Cobalto (Co) e composti",null,null,null,null,0]
["Manganese (Mn) e composti",null,null,null,null,0]
["Vanadio (V) e composti",null,null,null,null,0]
["Boro (B) e composti",null,null,null,null,0]
["Selenio (Se) e composti",null,null,null,null,0]
["DODICI METALLI","ISTISAN 88/19 + UNICHIM723 UNI EN 14385",null,105,null,{"$f":"D63*E63","v":0}]
["DICIASETTE METALLI","ISTISAN 88/19 + UNICHIM723 UNI EN 14385",null,145,null,{"$f":"D64*E64","v":0}]
["Mercurio (Hg) e composti","UNI EN 13211 (AAS idruri)",null,29,null,{"$f":"D65*E65","v":0}]
[null,"ISTISAN 88/19 + UNICHIM723 + ICP",null,26,null,{"$f":"D66*E66","v":0}]
["COV clorurati: dicloroetano 1,2 -DCE","UNI EN 13649 (GC)",null,60,null,{"$f":"D67*E67","v":0}]
["Diclorometano-DCM"]
["Esaclorobenzene-HCB"]
["Esaclorocicloesano-HCH"]
["tetracloroetilene-PER"]
["tetraclorometano-TCM"]
["triclorobenzeni-TCB"]
["tricloroetano111-TCE"]
["tricloroetilene-TRI"]
["triclorometano"]
["Microinquinanti Organici (PCDD+PCDF)","UNI EN 1948 (GC-MS)",null,800,null,{"$f":"D77*E77","v":0}]
[null,"UNICHIM 825 ISTISAN 88/19 (GC-MS)",null,800,null,0]
["Pentaclorofenolo (PCP)","OSHA 39",null,77,null,0]
["Microinquinanti Organici : (PCB)-(PCT) composti organici alogenati","Campionamento UNI EN 1948 (GC-MS)",null,385,null,0]
[null,"Campionamento UNICHIM 825 ISTISAN 88/19 (GC-MS)",null,385,null,0]
["Benzene","UNI EN 13649 (GC)",null,60,null,0]
["Idrocarburi policiclici aromatici (IPA)","Campionamento UNICHIM 825 ISTISAN 88/19 + ISTISAN 97/35 (GC-MS)",null,83,null,0]
["Cloro e composti inorganici","UNI EN 1911 (Cl, UV-VIS)",null,30,null,0]
[null,"ISTISAN 98/2 (CI)",null,30,null,0]
["Fluoro e composti inorganici","UNI 10787 (potenziometrica)",null,30,null,0]
[null,"ISTISAN 98/2 (CI)",null,30,null,0]
["Acido Cianidrico (HCN)","NIOSH 6010 (spettrofotometria)",null,28,null,0]
[null,"NIOSH 7904 (potenziometrica)",null,25,null,0]
[null,"NIOSH 7904 (campionamento) + IRSA 4070 (UV-VIS)",null,20,null,0]
["PM (polveri totali)","UNI 13284 (gravimetrica)",null,35,null,0]
[null,"UNI 10263 UNICHIM 402 UNICHIM 494 (gravimetrica)",null,23,null,0]
["PM 10","EPA 201A + UNI  13284 (gravimetrica)",null,41,null,0]
[null,"EPA 201A + UNI 10263 UNICHIM 402 UNICHIM 494 (gravimetrica)",null,35,null,0]
["Acido Nitrico (HNO3)","NIOSH 7903 (Cl)",null,46,null,0]
[null,"estensione del metodo ISTISAN 98/2 (Cl)",null,30,null,0]
["Acido solforico (H2SO4)","NIOSH 7903 (Cl)",null,46,null,0]
[null,"estensione del metodo ISTISAN 98/2 (Cl)",null,30,null,0]
["Acidi Organici","NIOSH 2011 (GC)",null,60,null,0]
["Ammine","NIOSH 2002 NIOSH 2010 (GC)",null,60,null,0]
["Fenoli","UNICHIM 504 (UV-VIS)",null,20,null,0]
[null,"OSHA 32 (HPLC-UV)",null,60,null,0]
[null,"NIOSH 2546 (GC)",null,60,null,0]
["Ftalati","OSHA 104 NIOSH 5020 (GC)",null,52,null,0]
["Acido Solfidrico (H2S)","Metodo DPR 322/71 Appendice n.8 (potenziometria)",null,25,null,0]
[null,"Metodo DPR 322/71 Appendice n.8 (UV-VIS)",null,20,null,0]
[null,"UNICHIM 634 (UV-VIS)",null,23,null,0]
["Aldeidi","UNICHIM 430 UNICHIM 487 (UV-VIS)",null,20,null,0]
[null,"EPA TO-11A NIOSH 2016 (HPLC)",null,61,null,0]
[null,"UNICHIM 430 (campionamento) + IRSA CNR 5010 (UV-VIS)",null,20,null,0]
["Silice libera cristallina (SiO2)","UNI 10568 (diffratt. RX)",null,110,null,0]
["Amianto","UNI ISO 10397 (microscopia) MOC 1 membrana",null,80,null,0]
[null,"UNI ISO 10397 (microscopia) MOC 2 membrane",null,110,null,0]
[null,"UNI ISO 10397 (microscopia) SEM 1 membrana",null,355,null,0]
[null,"UNI ISO 10397 (microscopia) SEM 2 membrane",null,500,null,0]
[null,"NON compilare!",null,null,null,0]
[null,null,null,null,null,0]
[null,null,null,null,null,0]
[null,null,null,null,"TOTALE",{"$f":"SUM($F$17:OFFSET($F$119,-1,0))","v":0}]

{"sheet":"Tariffe prelievi analisi acqua","index":3,"n_rows":108,"n_cols":6,"rows_kept":108,"cut":false,"hidden":false,"merged":[[9,0,11,5],[5,0,6,5],[85,1,106,1],[23,1,39,1],[67,0,68,0]]}
[]
[{"$f":"Riassunto_Tariffa!$A$2","v":"rev 01/11/2023"}]
["DM 24/04/2008 e DGRV 1519/2009"]
[]
[]
["*  se il PMC dell'azienda prevede \"attività/parametri\" non elencati nella prima colonna, è necessario inserirli singolarmente dalla riga  91 in poi, riportandone il  codice prestazione ed il costo indicati nel vigente tariffario ARPAV\nove necessario riportare la formula relativa ai Totali parziali per riga."]
[]
[]
[]
["Per il calcolo dei costi relativi ai controlli, l'azienda deve inserire nelle caselle colorate in verde solo il numero di attività/parametri che sono previsti. il costo viene calcolato automaticamente sia per ciascuna voce, sia il totale per matrice e riportato poi nel foglio riassunto."]
[]
[]
[]
["TARIFFARIO PRELIEVI ED ANALISI ACQUA"]
[]
["Attività/ Parametro","Metodi","codice prestazione tariffario ARPAV *","Tariffa (euro)","Numero di attività/parametri programmati ","Totale (euro)"]
["Campionamento scarico di acque reflue ","APAT-IRSA CNR 29/2003 n.1030 ",null,170,null,{"$f":"D17*E17","v":0}]
["Aldeidi ","APAT-IRSA CNR 29/2003 n.5010 A 18-APAT IRSA CNR 29/2003 5010 81 HPLC ",null,45,null,0]
["Azoto ammoniacale (NH4) ","APAT-IRSA CNR 29/2003 n.4030 -M10R250.0-APAT 29/2003 - 4030A2 ",null,10,null,0]
["Azoto nitrico (N) ","APAT-IRSA CNR 29/2003 n.4020 -APAT CNR IRSA 4040 Man29 (2003)-Azoto nitrico: UNI 9813 (1991) ",null,10,null,0]
["Azoto nitroso ","APAT-IRSA CNR 29/2003 n.4020 -APAT CNR IRSA 4040 Man29 (2003)-Azoto nitrico: UNI9813 (1991) ",null,10,null,0]
["Azoto totale ","APAT-IRSA CNR 29/2003 n.4060 -EN 25663 -TKN :mediante Kjeldahl e titola-zione titrimetrica ",null,24,null,0]
["BOD5 (O2) ","APAT-IRSA CNR 29/2003 n.5120 meto-do A.-STANDARD METHODS 5210-8 (20 thed.) APAT rRSA CNR 29/2003 5100 ",null,20,null,0]
["UN METALLO ","APAT-IRSA CNR 29/2003 n.3020 / UNI 1334660108 EPA -APAT IRSA CNR 29/2003 3010 + 3020 - APHA Standard Methods 31208 ed 20th (1998) - EN ISO 11885/96 (ICP-MS) ",null,9,null,0]
["DUE METALLI ",null,null,20,null,0]
["TRE METALLI ",null,null,30,null,0]
["QUATTRO METALLI ",null,null,40,null,0]
["CINQUE METALLI ",null,null,50,null,0]
["SEI METALLI ",null,null,54,null,0]
["SETTE METALLI    ",null,null,61,null,0]
["OTTO METALLI",null,null,72,null,0]
["NOVE METALLI",null,null,81,null,0]
["DIECI METALLI",null,null,90,null,0]
["UNDICI METALLI ",null,null,96,null,0]
["DODICI METALLI ",null,null,104,null,0]
["TREDICI METALLI ",null,null,114,null,0]
["QUATTORDICI METALLI ",null,null,123,null,0]
["QUINDICI METALLI ",null,null,130,null,0]
["SEDICI METALLI ",null,null,139,null,0]
["DICIASSETTE METALLI ",null,null,145,null,0]
["Carbonio Organico Totale ","APAT-IRSA CNR 29/2003 n.5040-Std.Methods 53108 -APHA Standard Methods 5310 C ed 20th (1998) -DIN EN 1484 ",null,20,null,0]
["Cianuri totali (CN) ","APAT-IRSA CNR 29/2003 n.4070 -EPA 9012/96 -EN ISO 14403/01N 38405 0131D14 ",null,21,null,0]
["Cloruri ","APAT-IRSA CNR 29/2003 n.4070 -EPA 9012/96 -EN ISO 14403/0lN 38405 013/014 ",null,11,null,0]
["COD (O2) ","APAT-IRSA CNR 29/2003 n.5130-M10R707.0-APAT-IRSA CNR 29/2003 n.5130 ",null,16,null,0]
["Colore ","APAT-IRSA CNR 29/2003 n.2020 ",null,8,null,0]
["Composti Organici Alogenati (AOX) (HCB -HCBD -HCH) ","APAT-IRSA CNR 29/2003 n.5150 -EPA 5120 -EPA 8260B -Metodo EPA 5021 + 8260 B-Metodo EPA 5021 + 8270 C-Metodo EPA 5021 + 8270 0-EN 1485/ISO 22155/04 ",null,60,null,0]
["Composto organo stannici ","APAT-IRSA CNR 29/2003 n.3280 -Metodo ICRAM appendice 1 - DIN 38407-13/01 ",null,62,null,0]
["Conducibilità ","APAT-IRSA CNR 29/2003 n.2030-STANDARD METHOOS 2510 B (20th ed.) -",null,4,null,0]
["Cromo III ","Oraft EPA Method 1614 -EPA 1625 ",null,4,null,0]
["Cromo VI ","Draft EPA Method 1614 -EPA 1625 ",null,9,null,0]
["Difeniletere Bromato ","Oraft EPA Method 1614 -EPA 1625 ",null,64,null,0]
["Escherichia Coli","APAT- IRSA CNR 29/2003 n.7030 --M10R794.0 ",null,15,null,0]
["Fenoli Singoli (HPLC) ","APAT 29/2003 -5070 B (HPLC) ",null,60,null,0]
["Fenoli Totali ","APAT 29/2003 -5070 A2 (distillazione e spetrofotometria) ",null,20,null,0]
["Fenoli ","APAT 29/2003 -5070 B -APHA Standard Methods 6420C ed 20th (1998) -DIN 38409-16-1/EN 12673 ",null,65,null,0]
["Floruri ","APAT 29/2003 -5070 B -APHA Standard Methods 6420C ed 20th (1998) -DIN 38409-16-1/EN 12673 ",null,17,null,{"$f":"D56*E56","v":0}]
["Fosforo Totale ","APAT-IRSA CNR 29/2003 n.4060 -APAT IRSA CNR 29/2003 3010 -3020 -UNI EN 1189:1999 - ISO 11885/96 ",null,13,null,0]
["Grassi e Olii Animali e Vegetali ","APAT-IRSA CNR 29/2003 n.5160 A1 -STANDARD METHODS 5520 B (20th ed.) -APAT IRSA CNR 029/2003 5160 A1 e A2 analisi gravimetrica ",null,20,null,0]
["Idrocarburi ","APAT-IRSA CNR. 29/2003 n.5160 A2-STANDARD METHOOS 5520 C, F (20th ed.) FT/IR ",null,45,null,0]
["IPA (6 IPA DI BORNHEFF) ","APAT-IRSA CNR 29/2003 n.5080 -DIN ISO 13877 IDIN 38407 F8 (HPLC) ",null,80,null,0]
["Materiali Grossolani ","APAT-IRSA CNR 29/2003 n.2090 ",null,5,null,0]
["Materiali Sedimentabili ","APAT-IRSA CNR 29/2003 n.2090 ",null,13,null,0]
["Mercurio (Hg) ","METODO INTERNO/APAT-IRSA CNR 29/2003 n.3200 -EPA 3005A + 6020 ICPMS -DIN EN 1484/97-",null,9,null,0]
["Nonilfenolo ","APAT-1RSA CNR 29/2003 n.5170-METODO INTERNO -DIN 38409-16-1/EN 12673",null,31,null,0]
["Odore ","APAT-IRSA CNR 29/2003 n.20S0 ",null,5,null,0]
["Olii Minerali ","APAT IRSA CNR 029/2003 5160 A1 e A2 -STANDARD METHOOS 5520 B, F (20th ed.) ",null,20,null,0]
["Ossidabilità secondo Kubel ",".",null,11,null,0]
["Ossigeno Disciolto ","APAT-IRSA CNR 29/2003 n.4120 ",null,10,null,0]
[null,"APAT-IRSA CNR 29/2003 n.4120-STANDARD METHODS 4500-0 G (20th ed.) -APAT IRSA CNR 29/2003 -4100B ",null,12,null,0]
["Pentaclorobenzene ","APAT-IRSA CNR 29/2003 n.5140 -Metodo EPA 5021 + 8260 B-Metodo EPA 5021 + 8270 C-Metodo EPA 5021 + 8270 D -DIN 38407 F9 ",null,60,null,0]
["Pesticidi Fosforati ","ISTISAN 00/14 Pt.1-APAT IRSA CNR 29/2003 5100 ",null,60,null,0]
["Pesticidi Totali (escluso i Fosforati) ","APAT-IRSA CNR 29/2003 n.50GO -ISTI-SAN 00/14 Pt.1 ",null,85,null,0]
["pH ","APAT IRSA CNR 29/2003 2060 -STAN-OARD METHOOS 4500-H+ (20th ed.) ",null,4,null,0]
["SAGGIO DI TOSSICITA' A-CUTA ","APAT-IRSA CNR 29/2003 8020-B ",null,75,null,0]
["Solfati (S04) ","APAT-IRSA CNR 29/2003 n.4150 -APAT IRSA 2003 4150 B ",null,9,null,0]
["Solfiti (S03) ","APAT-IRSA CNR 29/2003 n.4150 -APAT IRSA 2003 4150 B ",null,9,null,0]
["Solfuri ","APAT-IRSA CNR 29/2003 n.4160-STANDARD METHODS 4500-S2-F (20th ed.)",null,9,null,0]
["Solidi Sospesi ","APAT IRSA CNR 29/2003 2090 B-STANDARD METHODS 2540 D (20th ed.) ",null,9,null,0]
["Solventi Organici Aromatici ","APAT-IRSA CNR 29/2003 n.5140-M10R730.0 HSGCMS -Metodo EPA 5021 + 8260 B ",null,45,null,0]
["Solventi Organici Azotati ","GC-MS SPME METODO INTERNO-M10R001.0 GC M10R731.0 GCMSSPME ",null,58,null,0]
["Solventi OrganiCi Clorurati ","EPA S021/APAT-IRSA CNR 29/2003 n.5150 -ISTISAN 00/14 Pt.1 -M10R301.1 -Metodo EPA 5021 + 8260 B-Metodo EPA 5021 + 8270 C-Metodo EPA 5021 + 8270 D ",null,58,null,{"$f":"D81*E81","v":0}]
["Temperatura ","APAT-IRSA CNR 29/2003 n.2100 ",null,3,null,0]
["Tensioattivi Anionici ","APAT-IRSA CNR 29/2003 n.5170 ",null,17,null,0]
["Tensioattivi non ionici","APAT-IRSA CNR 29/2003 n.5180 ",null,31,null,0]
["TOC ","APAT-IRSA CNR 29/2003 n.5040-APHA Standard Methods 5310 C ed 20th (1998) ",null,25,null,0]
["Campionamento acqua da piezometro","NON compilare!",null,null,null,0]
["Azoto nitrico (solo per acque sotterannee)",null,null,null,null,{"$f":"D87*E87","v":0}]
["Cloruri (solo per acque sotterannee)",null,null,null,null,0]
["Solfati (solo per acque sotterannee)",null,null,null,null,0]
["PFAS",null,"4.2.00.115",125.58,null,0]
[null,null,null,null,null,0]
[null,null,null,null,null,0]
[null,null,null,null,null,0]
[null,null,null,null,null,0]
[null,null,null,null,null,0]
[null,null,null,null,null,0]
[null,null,null,null,null,0]
[null,null,null,null,null,0]
[null,null,null,null,null,0]
[null,null,null,null,null,0]
[null,null,null,null,null,0]
[null,null,null,null,null,0]
[null,null,null,null,null,0]
[null,null,null,null,null,0]
[null,null,null,null,null,0]
[null,null,null,null,null,0]
[null,null,null,null,null,0]
[null,null,null,null,"TOTALE",{"$f":"SUM($F$17:OFFSET($F$108,-1,0))","v":0}]

{"sheet":"Tariffario ARPAV_altre matrici","index":4,"n_rows":102,"n_cols":5,"rows_kept":102,"cut":false,"hidden":false,"merged":[[5,0,6,4]]}
[]
[{"$f":"Riassunto_Tariffa!$A$2","v":"rev 01/11/2023"}]
[]
[]
[]
["Nelle celle \"gialle\" sono riportati alcuni esempi di compilazione.\nSOSTITUIRE gli esempi con attività/parametri programmati riportandone il codice prestazione ed il costo indicati nel vigente tariffario ARPAV.\nove necessario riportare la formula relativa ai Totali parziali per riga.\nIl TOTALE è già impostato per accogliere i contributi delle nuove righe inserite."]
[]
[]
[]
["TARIFFE PRELIEVI ED ANALISI altre matrici"]
[]
[]
[]
["RIFIUTI - Caratterizzazione/Classificazione"]
["attività/parametri programmati ","Cod.","Costo","Numero di attività/parametri programmati ","Totale (euro)"]
["Metalli","4.5.00.47",214.23,null,{"$f":"D16*C16","v":0}]
["pH","4.5.00.52",24.23,null,0]
[null,null,null,null,0]
[null,null,null,null,0]
[null,null,null,null,0]
[null,null,null,null,0]
[null,null,null,"TOTALE",{"$f":"SUM($E$16:OFFSET($E$22,-1,0))","v":0}]
[]
[]
["RIFIUTI - Smaltimento - Test Eluizione"]
["attività/parametri programmati ","Cod.","Costo","Numero di attività/parametri programmati ","Totale (euro)"]
["Preparativa cessione","2.6.00.11",256.68,null,{"$f":"D27*C27","v":0}]
[null,null,null,null,{"$f":"D28*C28","v":0}]
[null,null,null,null,0]
[null,null,null,null,0]
[null,null,null,null,0]
[null,null,null,null,0]
[null,null,null,null,0]
[null,null,null,"TOTALE",{"$f":"SUM($E$27:OFFSET($E$34,-1,0))","v":0}]
[]
[]
["FANGHI DEPURAZIONE (DESTINATI A SPANDIMENTO/COMPOSTAGGIO) "]
["attività/parametri programmati ","Cod.","Costo","Numero di attività/parametri programmati ","Totale (euro)"]
["Azoto totale %",null,null,null,{"$f":"D39*C39","v":0}]
["Carbonio organico %",null,null,null,{"$f":"D40*C40","v":0}]
["Cloruri (se salinità >50)",null,null,null,0]
["Cromo esavalente",null,null,null,0]
["Fenoli volatili",null,null,null,0]
["Fosforo totale (P) %",null,null,null,0]
["Indice di Germinazione",null,null,null,0]
["Indice di Mineralizzazione dell'azoto",null,null,null,0]
["Indice di Respirazione mgO2/kgVS/h",null,null,null,0]
["pH",null,null,null,0]
["S.A.R. (se salinità >50)",null,null,null,0]
["Salinità (meq/100 gr.)",null,null,null,0]
["Salmonelle MPN/gr. s.s",null,null,null,0]
["Solfati (se salinità >50)",null,null,null,{"$f":"D52*C52","v":0}]
["Tensioattivi",null,null,null,0]
["Umidità",null,null,null,0]
[null,null,null,null,0]
[null,null,null,null,0]
[null,null,null,null,0]
[null,null,null,"TOTALE",{"$f":"SUM($E$39:OFFSET($E$58,-1,0))","v":0}]
[]
[]
["CSS \u0096 COMBUSTIBILE SOLIDO SECONDARIO"]
["attività/parametri programmati ","Cod.","Costo","Numero di attività/parametri programmati ","Totale (euro)"]
["Campionamento e prelievo",null,null,null,{"$f":"D63*C63","v":0}]
["Ceneri",null,null,null,0]
["Cloro",null,null,null,0]
["Metalli",null,null,null,0]
["Mineralizzazione metalli ",null,null,null,0]
["Potere calorifico inferiore",null,null,null,0]
["Umidità totale",null,null,null,0]
[null,null,null,null,0]
[null,null,null,null,0]
[null,null,null,null,0]
[null,null,null,"TOTALE",{"$f":"SUM($E$63:OFFSET($F$73,-1,0))","v":0}]
[]
[]
["COMPOST"]
["attività/parametri programmati ","Cod.","Costo","Numero di attività/parametri programmati ","Totale (euro)"]
["Campionamento Compost",null,null,null,{"$f":"D78*C78","v":0}]
["Azoto organico totale",null,null,null,0]
["Umidità",null,null,null,0]
["Carbonio organico totale",null,null,null,0]
["C/N",null,null,null,0]
["pH",null,null,null,0]
["Rame totale",null,null,null,0]
["Zinco totale",null,null,null,0]
["Piombo totale",null,null,null,0]
["Cadmio totale",null,null,null,0]
["Nichel totale",null,null,null,0]
["Mercurio totale",null,null,null,0]
["Mineralizzazione metalli",null,null,null,0]
["Salmonella ",null,null,null,0]
["Escherichia coli",null,null,null,0]
["Indice di Germinazione",null,null,null,0]
["Indice di Accrescimento ",null,null,null,0]
["Cromo esavalente",null,null,null,0]
["Vetro e metalli ( Ø ≥ 2mm)",null,null,null,0]
["Inerti litoidi  ( Ø ≥ 5mm)",null,null,null,0]
["Indice di Mineralizzazione Azoto",null,null,null,0]
[null,null,null,null,0]
[null,null,null,null,0]
[null,null,null,null,0]
[null,null,null,"TOTALE",{"$f":"SUM($E$78:OFFSET($F$102,-1,0))","v":0}]

{"sheet":"Riassunto_Tariffa","index":5,"n_rows":52,"n_cols":2,"rows_kept":52,"cut":false,"hidden":false,"merged":[[30,0,31,1],[26,0,27,1],[5,0,6,1],[10,0,10,1],[8,0,8,1],[7,0,7,1],[51,0,53,1],[35,0,36,1],[37,0,38,1],[39,0,39,1],[47,0,48,1]]}
[]
["rev 01/11/2023"]
[]
[]
[]
["Tariffa di controllo Tc per le attività indicate al comma 1 dell'articolo 3 del D.M. 24.4.2008"]
[]
["Tc= max (1500;(Caria+CH2O+Crp+Crnp+Cca+Cri+Cem+Cod+Cst+Cra)*0,1*0,7+100)"]
["La Tc finale sarà pari al risultato dell'algoritmo di calcolo nel caso in cui l'importo superi i 1500 euro. Per importi inferiori la tariffa sarà pari a 1500. Per gli Allevamenti è disposta la tariffa controllo di 800€"]
["ALLEVAMENTO SOLO Tc: mettere una X nella casella B10"]
["Calcolo Tariffa Controllo (priva dei costi di prelievo e analisi)"]
["Parametri","Costo (euro)"]
["Caria",{"$f":"'Tariffa componenti ambientali'!A15","v":0}]
["CH2O",{"$f":"'Tariffa componenti ambientali'!A26","v":0}]
["Crp ",{"$f":"'Tariffa componenti ambientali'!A38","v":0}]
["CRnp ",{"$f":"'Tariffa componenti ambientali'!A41","v":0}]
["Cdeposito temporaneo",{"$f":"'Tariffa componenti ambientali'!A47","v":0}]
["Ulteriori componenti ambientali: dipende dal tipo di attività"]
["Cca",{"$f":"'Tariffa componenti ambientali'!A56","v":0}]
["Cri",{"$f":"'Tariffa componenti ambientali'!A62","v":0}]
["Cem ","――――――"]
["Cod",{"$f":"'Tariffa componenti ambientali'!A70","v":0}]
["Cst",{"$f":"'Tariffa componenti ambientali'!A74","v":0}]
["Cra",{"$f":"'Tariffa componenti ambientali'!A78","v":0}]
["Tc",{"$f":"_xlfn.IFS($B$10<>\"\",\"800\",'Tariffa componenti ambientali'!$D$6=\"x\",\"\",((B13+B14+B15+B16+B17+B19+B20+B22+B23+B24)=0),0,(((B13+B14+B15+B16+B17+B19+B20+B22+B23+B24)*0.1*0.7+100)<1500),1500,((B13+B14+B15+B16+B17+B19+B20+B22+B23+B24)*0.1*0.7+100)>1500,(B13+B14+B15+B16+B17+B19+B20+B22+B23+B24)*0.1*0.7+100)","v":0}]
[]
["Eventuale riduzione della tariffa Tc dovuta alla presenza di un sistema di gestione ambientale secondo la DGRV 1519/2009, verrà calcolata in automatico e il valore riportato qui sotto."]
[]
["Csga-14001",{"$f":"IF('Tariffa componenti ambientali'!C89=\"X\",Riassunto_Tariffa!B25*0.1,0)","v":0}]
["Csga-EMAS",{"$f":"IF('Tariffa componenti ambientali'!C92=\"X\",Riassunto_Tariffa!B25*0.25,0)","v":0}]
["In base a quanto stabilito dalla DGRV 1519 nel caso in cui l'impianto è dotato di entrambe le tipologie di SGA, il calcolo viene effetuato una sola volta per la condizione più favorevole. Questa situazione nel calcolo automatico è già considerata."]
[]
[]
["Costo finale Tc",{"$f":"IF('Tariffa componenti ambientali'!C92=\"x\",Riassunto_Tariffa!B25-Riassunto_Tariffa!B30,IF('Tariffa componenti ambientali'!C89=\"x\",Riassunto_Tariffa!B25-Riassunto_Tariffa!B29,Riassunto_Tariffa!B25))","v":0}]
[]
["Calcolo della Tariffa di Analisi Ta per le attività indicate al comma 2 dell'articolo 3 del D.M. 24 aprile 2008"]
[]
["Il Calcolo della Tariffa Analisi (Ta) avviene sommando gli importi,  ciascuno moltiplicato per il corrispondente numero di attività/parametro."]
[]
["Calcolo Tariffa Analisi (Ta)"]
[null,"Costo (euro)"]
["Matrice Aria",{"$f":"'Tariffe prelievi analisi aria'!F119","v":0}]
["Matrice Acqua",{"$f":"'Tariffe prelievi analisi acqua'!F108","v":0}]
["altre matrici",{"$f":"RCC+RSTE+FD+CSS+COM","v":0}]
["Ta",{"$f":"SUM(B42:B44)","v":0}]
[]
[]
["Costo totale della Tariffa che comprende la parte di controllo e quella analitica (Tc+Ta)."]
[]
["imposta di bollo",2]
["Costo Totale (euro)",{"$f":"B45+B34+B50","v":2}]
["NOTA: Si rileva che le note \"AIA\" di importo superiore ai 77,46 sono fuori campo IVA ma vengono emesse con applicazione dell'imposta di bollo pari ad € 2,00 assolto in modo virtuale.\nCiò significa che la ditta deve versare l'importo della prestazione maggiorato di € 2,00 ma non trova la voce relativa al bollo nel fac simile di calcolo."]